bitfinex-derivatives/quotes_BTCF0:USTF0_20250716
["timestamp","ask_amount","ask_price","bid_price","bid_amount"]
[1752691642930,0.8668932,119860.0,119850.0,1.52348]
[1752691644030,0.2538671,119850.0,119840.0,0.00241]
[1752691644222,0.253881,119840.0,119830.0,7.02997627]
[1752691644427,1.27767804,119840.0,119830.0,8.52545627]
[1752691644727,0.866801,119840.0,119830.0,8.52545627]
[1752691645029,1.27767804,119840.0,119830.0,8.52545627]
[1752691645530,0.866801,119840.0,119830.0,8.52545627]
[1752691645736,0.867801,119840.0,119830.0,8.52545627]
[1752691646534,0.867801,119840.0,119830.0,1.5]
[1752691647331,0.1668088,119820.0,119810.0,0.09496553]
[1752691647635,0.8667088,119820.0,119810.0,0.04732553]
[1752691647835,0.8667088,119820.0,119810.0,1.53186553]
[1752691648127,0.8667088,119820.0,119810.0,1.5]
[1752691648529,0.2539227,119810.0,119800.0,7.07083229]
[1752691648731,0.2539227,119810.0,119800.0,7.02339229]
[1752691648926,0.2539227,119810.0,119800.0,8.51887229]
[1752691649626,0.8666827,119810.0,119800.0,8.51887229]
[1752691650234,0.8666827,119810.0,119800.0,1.5002]
[1752691651336,0.8665227,119810.0,119800.0,1.6917267]
[1752691651937,0.8665227,119810.0,119800.0,1.52489]
[1752691652337,0.8665227,119810.0,119800.0,1.5002]
[1752691652537,0.8665227,119810.0,119800.0,0.0002]
[1752691652737,0.2539227,119810.0,119800.0,0.0002]
[1752691653036,0.8666427,119810.0,119800.0,0.0002]
[1752691653333,0.8665227,119810.0,119800.0,0.0002]
[1752691653539,0.2539227,119810.0,119800.0,0.1670367]
[1752691653739,0.66007,119810.0,119800.0,0.65756374]
[1752691653939,0.63647,119810.0,119800.0,0.65756374]
[1752691654136,0.02395,119810.0,119800.0,0.2466867]
[1752691654443,0.8268927,119810.0,119800.0,0.2466867]
[1752691654636,0.8594227,119810.0,119800.0,0.07985]
[1752691654838,0.8594227,119810.0,119800.0,0.2466867]
[1752691655038,0.8594227,119810.0,119800.0,0.0569]
[1752691655237,0.8594227,119810.0,119800.0,0.2237367]
[1752691655741,0.8594227,119810.0,119800.0,0.0569]
[1752691655942,0.8594227,119810.0,119800.0,0.2237367]
[1752691656140,0.8594227,119810.0,119800.0,0.2466867]
[1752691656944,0.8594227,119810.0,119800.0,0.65756374]
[1752691657239,4e-05,119810.0,119800.0,0.65756374]
[1752691657539,0.61248,119810.0,119800.0,1.06844078]
[1752691657742,4e-05,119810.0,119800.0,1.07989078]
[1752691658142,4e-05,119810.0,119800.0,0.2581367]
[1752691658343,4e-05,119810.0,119800.0,0.66901374]
[1752691660243,0.1668628,119810.0,119800.0,0.66901374]
[1752691660754,4e-05,119810.0,119800.0,0.66901374]
[1752691661047,0.00024,119820.0,119810.0,0.2534028]
[1752691661245,0.61328,119840.0,119830.0,0.2533749]
[1752691661442,0.780061,119840.0,119830.0,0.66425194]
[1752691661643,0.001,119840.0,119830.0,0.66425194]
[1752691661848,0.167781,119840.0,119830.0,0.66425194]
[1752691662239,0.254881,119840.0,119830.0,0.08658]
[1752691662440,0.250081,119840.0,119830.0,0.66425194]
[1752691663045,0.217551,119840.0,119830.0,0.66425194]
[1752691663241,0.001,119840.0,119830.0,0.66425194]
[1752691663848,0.00104,119840.0,119830.0,0.66425194]
[1752691665646,0.167821,119840.0,119830.0,0.66425194]
[1752691665846,0.00104,119840.0,119830.0,0.66425194]
[1752691666850,0.00104,119840.0,119830.0,0.73047825]
[1752691672342,0.2557011,119840.0,119830.0,0.06363]
[1752691672652,0.2557011,119840.0,119830.0,0.190275]
[1752691675747,0.2557011,119840.0,119830.0,0.00241]
[1752691675953,0.250075,119830.0,119820.0,0.3373979]
[1752691676151,0.866275,119830.0,119820.0,0.3139879]
[1752691677357,0.866275,119830.0,119820.0,0.3293579]
[1752691677556,0.866275,119830.0,119820.0,0.2525464]
[1752691678155,0.866275,119830.0,119820.0,0.1691471]
[1752691678353,0.866475,119830.0,119820.0,0.1691471]
[1752691678852,0.866475,119830.0,119810.0,0.0457]
[1752691678853,0.2011389,119820.0,119810.0,0.0457]
[1752691679059,0.2548889,119820.0,119810.0,0.1889122]
[1752691679548,0.2548889,119820.0,119810.0,0.1899122]
[1752691679957,0.2548889,119820.0,119810.0,0.1701722]
[1752691680453,0.2548889,119820.0,119810.0,0.01762595]
[1752691680758,0.66576594,119820.0,119810.0,0.001]
[1752691681155,0.2011528,119810.0,119800.0,0.00472]
[1752691681452,1.27717984,119810.0,119800.0,0.00452]
[1752691681648,1.27717984,119810.0,119790.0,0.0002]
[1752691681649,0.2547168,119800.0,119790.0,0.0002]
[1752691681849,0.2501307,119790.0,119780.0,1.66720207]
[1752691682045,0.2549307,119790.0,119780.0,1.66700237]
[1752691682248,0.2549307,119790.0,119780.0,0.18365002]
[1752691682448,0.8662907,119790.0,119780.0,0.18600002]
[1752691682855,0.8662907,119790.0,119780.0,0.20117002]
[1752691683050,0.2549307,119790.0,119780.0,0.23995002]
[1752691683258,0.69948,119790.0,119780.0,0.67817706]
[1752691683456,0.6116,119790.0,119780.0,0.67817706]
[1752691683955,0.8344707,119790.0,119780.0,0.26730002]
[1752691684159,1.44417574,119790.0,119780.0,0.00013777]
[1752691684357,0.2547446,119780.0,119770.0,0.0002]
[1752691684553,0.2547585,119770.0,119760.0,0.0002]
[1752691684753,0.2501725,119760.0,119750.0,8.38340151]
[1752691684955,0.66584954,119760.0,119750.0,8.38320151]
[1752691685254,0.66584954,119760.0,119750.0,6.88320151]
[1752691685459,0.66584954,119760.0,119750.0,6.92752006]
[1752691685960,0.2549725,119760.0,119750.0,0.21122495]
[1752691686258,0.8664125,119760.0,119750.0,0.04431855]
[1752691686456,1.27728954,119760.0,119750.0,0.04731855]
[1752691686657,1.27728954,119760.0,119750.0,0.02017741]
[1752691686858,1.27728954,119760.0,119750.0,0.01717741]
[1752691687056,1.27728954,119760.0,119750.0,0.01817741]
[1752691687256,0.2012364,119750.0,119740.0,0.0002]
[1752691687462,0.2548004,119740.0,119730.0,0.05950773]
[1752691687654,0.2502143,119730.0,119720.0,0.30513474]
[1752691687853,0.2550143,119730.0,119720.0,0.2460282]
[1752691688157,0.2550143,119730.0,119720.0,0.11531248]
[1752691688462,0.08808,119730.0,119720.0,0.2460282]
[1752691688655,0.7008,119730.0,119720.0,0.2505982]
[1752691688856,0.8677343,119730.0,119720.0,0.2505982]
[1752691689853,0.8677343,119730.0,119720.0,0.08365]
[1752691690055,0.8677343,119730.0,119720.0,0.00235]
[1752691690254,0.7008,119730.0,119710.0,0.01718086]
[1752691690457,0.66570524,119720.0,119710.0,0.0002]
[1752691690655,0.2502422,119710.0,119700.0,0.2879926]
[1752691690859,0.8715222,119710.0,119700.0,0.03289]
[1752691691048,0.8715222,119710.0,119700.0,0.2460561]
[1752691691461,0.93806408,119710.0,119700.0,0.26308816]
[1752691691656,0.93806408,119710.0,119700.0,0.24030816]
[1752691691953,0.93806408,119710.0,119700.0,0.06292206]
[1752691692158,0.93806408,119710.0,119700.0,0.03003206]
[1752691692350,0.93806408,119710.0,119700.0,0.013]
[1752691692549,0.2548561,119700.0,119690.0,0.0002]
[1752691692749,0.2502701,119690.0,119680.0,0.0002]
[1752691692952,0.2964355,119680.0,119670.0,0.17510384]
[1752691693155,0.254684,119680.0,119670.0,0.17510384]
[1752691693359,0.08788,119680.0,119670.0,0.17510384]
[1752691693552,0.08788,119680.0,119670.0,0.19047384]
[1752691693748,0.08788,119680.0,119670.0,0.62357088]
[1752691693954,0.6358,119680.0,119670.0,0.63772196]
[1752691694157,0.6358,119680.0,119670.0,0.22684492]
[1752691694360,0.05357,119690.0,119680.0,0.2349339]
[1752691694555,0.68953,119690.0,119680.0,0.25138924]
[1752691694864,0.63596,119690.0,119680.0,0.64581094]
[1752691695055,0.04871,119700.0,119690.0,0.22857]
[1752691695364,0.05357,119710.0,119700.0,0.185256]
[1752691695555,0.05132,119720.0,119710.0,0.2014121]
[1752691695758,0.6857,119720.0,119710.0,0.61228914]
[1752691695954,0.6857,119720.0,119710.0,0.57428113]
[1752691696363,4e-05,119730.0,119720.0,0.2013981]
[1752691696661,4e-05,119730.0,119720.0,0.61227514]
[1752691697164,4e-05,119730.0,119720.0,0.2013981]
[1752691697359,4e-05,119730.0,119720.0,0.61227514]
[1752691697560,0.01404,119730.0,119720.0,0.61327514]
[1752691697760,0.01404,119730.0,119720.0,0.2023981]
[1752691697958,0.01404,119730.0,119720.0,0.62970709]
[1752691698361,0.01404,119730.0,119720.0,0.21883005]
[1752691698565,0.01404,119730.0,119720.0,0.62970709]
[1752691699060,0.01404,119730.0,119720.0,0.60256162]
[1752691699264,0.01404,119730.0,119720.0,0.19168458]
[1752691699461,0.01404,119730.0,119720.0,0.60256162]
[1752691700260,0.01408,119730.0,119720.0,0.60256162]
[1752691700663,0.01408,119730.0,119720.0,0.19168458]
[1752691700860,0.01408,119730.0,119720.0,0.56455702]
[1752691701365,0.01408,119730.0,119720.0,0.46275899]
[1752691701565,0.01408,119730.0,119720.0,0.62970709]
[1752691702066,0.2274742,119730.0,119720.0,0.6107052]
[1752691702265,0.06054,119730.0,119720.0,0.6107052]
[1752691702662,0.01408,119730.0,119720.0,0.6107052]
[1752691703068,0.06054,119730.0,119720.0,0.19982816]
[1752691703363,0.0654,119730.0,119720.0,0.6107052]
[1752691704269,0.0654,119730.0,119720.0,0.6284052]
[1752691704960,0.64232,119740.0,119730.0,0.1669342]
[1752691705166,4e-05,119750.0,119740.0,0.1785202]
[1752691705469,4e-05,119750.0,119740.0,0.58939724]
[1752691705966,1.84884,119770.0,119760.0,0.19534227]
[1752691706168,2.0157184,119770.0,119760.0,0.60621931]
[1752691706560,1.84884,119770.0,119760.0,0.60621931]
[1752691706767,2.0157184,119770.0,119760.0,0.60621931]
[1752691706969,2.0157184,119770.0,119760.0,0.19534227]
[1752691707368,2.0157184,119770.0,119760.0,0.18378227]
[1752691708176,2.0157184,119770.0,119760.0,0.01688997]
[1752691708371,2.0157184,119770.0,119760.0,0.18378227]
[1752691709069,2.0157184,119770.0,119760.0,0.01688997]
[1752691709269,0.1668923,119760.0,119750.0,0.2503488]
[1752691709472,0.2182123,119760.0,119750.0,0.2503488]
[1752691709674,0.2184123,119760.0,119750.0,0.2503488]
[1752691709863,0.1669063,119750.0,119740.0,0.96760404]
[1752691710068,0.8616263,119750.0,119740.0,0.96740404]
[1752691710269,0.8616263,119750.0,119740.0,0.2946]
[1752691711073,1.27250334,119750.0,119740.0,0.2946]
[1752691711580,1.2900516,119750.0,119740.0,0.2946]
[1752691711778,1.2900916,119750.0,119740.0,0.2946]
[1752691712077,0.87921456,119750.0,119740.0,0.4615202]
[1752691712268,0.87921456,119750.0,119740.0,0.4645202]
[1752691712568,0.23601456,119750.0,119740.0,0.4645202]
[1752691712874,0.87881456,119750.0,119740.0,0.4645202]
[1752691713374,0.87881456,119750.0,119740.0,0.87539724]
[1752691713972,0.87869456,119750.0,119740.0,0.58079724]
[1752691714272,0.06910826,119750.0,119740.0,0.58079724]
[1752691714470,0.71146826,119750.0,119740.0,0.58079724]
[1752691714676,0.00024,119750.0,119740.0,0.59235724]
[1752691715976,0.00024,119750.0,119740.0,0.58935724]
[1752691716178,0.00024,119750.0,119740.0,0.59035724]
[1752691721571,1e-07,119750.0,119740.0,0.59035724]
[1752691721880,1e-07,119750.0,119740.0,0.60555724]
[1752691722879,1e-07,119750.0,119740.0,0.90015724]
[1752691727789,1e-07,119750.0,119740.0,0.4892802]
[1752691728185,1e-07,119750.0,119740.0,0.90015724]
[1752691728388,1e-07,119750.0,119740.0,0.4892802]
[1752691728590,1e-07,119750.0,119740.0,0.90015724]
[1752691730993,0.0234401,119750.0,119740.0,0.90015724]
[1752691732191,0.0234401,119750.0,119740.0,0.95916972]
[1752691739401,0.0234401,119750.0,119740.0,0.54829268]
[1752691739603,0.0236401,119750.0,119740.0,0.95916972]
[1752691741097,0.0236401,119750.0,119740.0,0.54829268]
[1752691741308,0.0236401,119750.0,119740.0,0.95916972]
[1752691741603,0.8883664,119750.0,119740.0,0.4625202]
[1752691742197,0.7214601,119750.0,119740.0,0.87339724]
[1752691742399,0.8882064,119750.0,119740.0,0.88916724]
[1752691742599,0.8882064,119750.0,119740.0,0.88816724]
[1752691742796,0.8882064,119750.0,119740.0,0.4772902]
[1752691742797,0.8892064,119750.0,119740.0,0.4772902]
[1752691742996,0.8892064,119750.0,119740.0,0.4615202]
[1752691743900,0.8882064,119750.0,119740.0,0.4615202]
[1752691744399,1.29908344,119750.0,119740.0,0.4615202]
[1752691744600,0.8882064,119750.0,119740.0,0.4615202]
[1752691744802,0.2529664,119750.0,119740.0,0.4615202]
[1752691745001,0.7220201,119750.0,119740.0,0.88816724]
[1752691745401,0.8889264,119750.0,119740.0,0.88816724]
[1752691745797,0.7220201,119750.0,119740.0,0.88816724]
[1752691746002,0.8889264,119750.0,119740.0,0.4772902]
[1752691746408,0.8889264,119750.0,119740.0,0.4615202]
[1752691746607,0.8889264,119750.0,119740.0,0.1669202]
[1752691746901,0.8899264,119750.0,119740.0,0.1669202]
[1752691748311,1.30080344,119750.0,119740.0,0.1669202]
[1752691748697,0.2478002,119740.0,119730.0,0.2505895]
[1752691748902,0.2478002,119740.0,119730.0,0.2503895]
[1752691748903,0.2529802,119740.0,119730.0,0.2503895]
[1752691749403,0.08606,119740.0,119730.0,0.67703654]
[1752691749709,0.0549,119740.0,119730.0,0.68859654]
[1752691749909,0.0002,119740.0,119730.0,0.68859654]
[1752691750204,0.0002,119740.0,119730.0,1.32703654]
[1752691750407,0.0002,119740.0,119730.0,1.38604902]
[1752691750803,0.00024,119740.0,119730.0,1.32703654]
[1752691751001,0.00024,119740.0,119730.0,0.9161595]
[1752691751204,0.00024,119740.0,119730.0,1.32703654]
[1752691752307,0.00024,119740.0,119730.0,0.9161595]
[1752691752509,0.00024,119740.0,119730.0,1.32703654]
[1752691752708,0.00024,119740.0,119730.0,1.33003654]
[1752691753202,0.00024,119740.0,119730.0,0.2807195]
[1752691753407,0.00024,119740.0,119730.0,0.69159654]
[1752691754604,0.02408,119740.0,119730.0,0.69159654]
[1752691755006,0.05165,119740.0,119730.0,0.69159654]
[1752691755512,0.02877,119740.0,119730.0,0.98619654]
[1752691755910,0.02877,119740.0,119730.0,0.5753195]
[1752691756410,0.02877,119740.0,119730.0,0.98619654]
[1752691756911,0.02408,119740.0,119730.0,0.98619654]
[1752691757811,0.02408,119740.0,119730.0,0.5753195]
[1752691758012,0.02408,119740.0,119730.0,0.98619654]
[1752691758812,0.02408,119740.0,119730.0,0.5753195]
[1752691759014,0.02408,119740.0,119730.0,0.98619654]
[1752691759406,4e-05,119770.0,119730.0,0.73580704]
[1752691759607,0.05141,119760.0,119750.0,0.2364521]
[1752691759812,0.05141,119760.0,119750.0,0.66385535]
[1752691760808,0.05141,119760.0,119750.0,0.72286783]
[1752691761707,0.0865,119760.0,119750.0,0.30043079]
[1752691761908,0.2533924,119760.0,119750.0,0.24141831]
[1752691762315,0.0865,119760.0,119750.0,0.24141831]
[1752691762518,0.0865,119760.0,119750.0,0.65229535]
[1752691763209,0.08654,119760.0,119750.0,0.65229535]
[1752691763611,0.04676,119770.0,119760.0,0.1947124]
[1752691763805,0.2502681,119800.0,119760.0,0.53869704]
[1752691764011,0.05220882,119800.0,119790.0,0.63429764]
[1752691764213,0.03509,119800.0,119790.0,0.67802862]
[1752691764414,0.00249,119800.0,119790.0,0.67802862]
[1752691764614,0.00249,119800.0,119790.0,0.72250037]
[1752691764917,0.8955466,119820.0,119810.0,0.2233927]
[1752691764918,0.68041,119820.0,119810.0,0.2233927]
[1752691765111,0.03509,119820.0,119810.0,0.66150974]
[1752691765707,0.03509,119820.0,119810.0,0.25884418]
[1752691766010,0.0865,119820.0,119810.0,0.71414196]
[1752691766215,0.0865,119820.0,119810.0,0.30326492]
[1752691766412,0.0865,119820.0,119810.0,0.25884418]
[1752691766616,0.2533088,119820.0,119810.0,0.23160418]
[1752691766817,0.0865,119820.0,119810.0,0.20887418]
[1752691767017,0.2583088,119820.0,119810.0,0.23160418]
[1752691767225,0.2583088,119820.0,119810.0,0.2233927]
[1752691767725,0.09154,119820.0,119810.0,0.28938095]
[1752691768016,0.09154,119820.0,119810.0,0.72749799]
[1752691768215,0.09154,119820.0,119810.0,0.73596799]
[1752691768530,0.09158,119820.0,119810.0,0.32509095]
[1752691768714,0.09158,119820.0,119810.0,0.73596799]
[1752691769020,0.09158,119820.0,119810.0,0.73127799]
[1752691769412,0.2583888,119820.0,119810.0,0.73127799]
[1752691769609,0.05898,119820.0,119810.0,0.73596799]
[1752691769814,0.03141,119820.0,119810.0,0.73596799]
[1752691770017,0.00508,119820.0,119810.0,0.73596799]
[1752691770216,0.00508,119820.0,119810.0,1.38132799]
[1752691770420,0.00039,119820.0,119810.0,1.38132799]
[1752691770624,4e-05,119830.0,119820.0,0.1981788]
[1752691770820,4e-05,119830.0,119820.0,0.65433584]
[1752691772621,4e-05,119830.0,119820.0,0.2434588]
[1752691772921,0.00108,119830.0,119820.0,0.65433584]
[1752691773425,0.00112,119830.0,119820.0,0.6711987]
[1752691773628,0.00116,119830.0,119820.0,0.6711987]
[1752691774224,0.0012,119830.0,119820.0,0.6711987]
[1752691775928,8e-05,119840.0,119830.0,0.243445]
[1752691776128,8e-05,119840.0,119830.0,1.29812204]
[1752691776324,0.00028,119840.0,119830.0,1.29812204]
[1752691776727,0.00028,119840.0,119830.0,0.887245]
[1752691776922,0.00028,119840.0,119830.0,1.29812204]
[1752691777123,0.05418,119840.0,119830.0,1.29700204]
[1752691777424,0.05418,119840.0,119830.0,0.65432204]
[1752691777725,0.253561,119840.0,119830.0,1.29748204]
[1752691777925,0.08678,119840.0,119830.0,1.29748204]
[1752691778525,0.253601,119840.0,119830.0,0.243445]
[1752691778724,0.253641,119840.0,119830.0,0.65432204]
[1752691778920,0.0869,119840.0,119830.0,0.65432204]
[1752691779320,0.08694,119840.0,119830.0,0.65432204]
[1752691781030,0.05434,119840.0,119830.0,0.65432204]
[1752691781231,0.03146,119840.0,119830.0,0.65432204]
[1752691781427,0.00513,119840.0,119830.0,0.65432204]
[1752691782134,0.02897,119840.0,119830.0,0.65432204]
[1752691782531,0.02897,119840.0,119830.0,0.243445]
[1752691782727,0.02897,119840.0,119830.0,0.65432204]
[1752691783031,0.00513,119840.0,119830.0,0.65432204]
[1752691783438,0.00044,119840.0,119830.0,0.65432204]
[1752691783828,0.00044,119840.0,119830.0,0.243445]
[1752691784138,0.00498,119840.0,119830.0,0.65432204]
[1752691784626,0.00498,119840.0,119830.0,1.29500204]
[1752691784828,0.02834,119840.0,119830.0,1.29500204]
[1752691785629,0.00044,119840.0,119830.0,1.29500204]
[1752691787041,0.00044,119840.0,119830.0,0.65432204]
[1752691787240,0.00044,119840.0,119830.0,1.29408204]
[1752691787932,0.00044,119840.0,119830.0,0.65432204]
[1752691788133,0.08697,119840.0,119830.0,1.29396204]
[1752691788433,0.08697,119840.0,119830.0,0.65432204]
[1752691788831,0.05401,119840.0,119830.0,0.65432204]
[1752691789041,0.00498,119840.0,119830.0,0.65432204]
[1752691789833,4e-05,119850.0,119840.0,0.166781]
[1752691790130,4e-05,119850.0,119840.0,0.65730804]
[1752691790842,4e-05,119850.0,119840.0,1.29606804]
[1752691791139,4e-05,119860.0,119850.0,0.2464171]
[1752691791439,4e-05,119860.0,119850.0,1.06817118]
[1752691791737,4e-05,119860.0,119850.0,0.65729414]
[1752691791940,0.00458,119860.0,119850.0,0.65729414]
[1752691792139,4e-05,119860.0,119850.0,0.65729414]
[1752691792342,4e-05,119860.0,119850.0,0.26316226]
[1752691792544,0.02794,119860.0,119850.0,0.26316226]
[1752691792833,0.00458,119860.0,119850.0,0.6740393]
[1752691793938,0.00458,119860.0,119850.0,0.6750393]
[1752691794143,4e-05,119860.0,119850.0,1.08591634]
[1752691795845,4e-05,119870.0,119860.0,0.2464032]
[1752691796044,4e-05,119870.0,119860.0,1.29616024]
[1752691796339,4e-05,119870.0,119860.0,0.8852832]
[1752691796554,4e-05,119870.0,119860.0,1.29616024]
[1752691797750,0.8883606,119890.0,119880.0,0.2463754]
[1752691797751,0.04664,119890.0,119880.0,0.2463754]
[1752691798359,0.04664,119890.0,119880.0,0.65725244]
[1752691798556,0.2133515,119890.0,119880.0,0.65725244]
[1752691798854,0.2133515,119890.0,119880.0,0.2463754]
[1752691799048,0.0796,119890.0,119880.0,0.65725244]
[1752691799249,0.08653,119890.0,119880.0,0.65725244]
[1752691799451,0.08653,119890.0,119880.0,0.72517765]
[1752691800255,0.08653,119890.0,119880.0,0.31430061]
[1752691800446,0.2532554,119880.0,119870.0,0.04442074]
[1752691800647,0.2532693,119870.0,119860.0,0.1667475]
[1752691800950,0.2532693,119870.0,119850.0,0.00274516]
[1752691800951,0.2532832,119860.0,119850.0,0.00274516]
[1752691801250,0.08653,119840.0,119830.0,0.2918759]
[1752691801444,0.08653,119840.0,119830.0,0.71017294]
[1752691801649,0.253311,119840.0,119830.0,0.71017294]
[1752691801946,0.51554419,119840.0,119820.0,0.01686286]
[1752691802146,0.1066887,119820.0,119790.0,0.0163542]
[1752691802346,0.1668646,119780.0,119770.0,0.07382914]
[1752691802546,0.1668924,119760.0,119750.0,0.11215769]
[1752691802849,0.57776944,119760.0,119750.0,0.05925165]
[1752691803046,0.57776944,119760.0,119740.0,0.2039908]
[1752691803047,0.1669064,119750.0,119740.0,0.05299]
[1752691803247,0.1669064,119750.0,119740.0,0.12702424]
[1752691803448,0.1669064,119750.0,119740.0,0.07403424]
[1752691803449,0.3339304,119750.0,119740.0,0.07403424]
[1752691803653,0.74480744,119750.0,119740.0,0.07403424]
[1752691803850,0.1669203,119740.0,119730.0,0.04804]
[1752691804048,0.1669343,119730.0,119720.0,0.05299]
[1752691804554,0.1669464,119750.0,119740.0,0.05299]
[1752691804950,4e-05,119750.0,119740.0,0.2199103]
[1752691805148,0.1669464,119750.0,119740.0,0.05299]
[1752691805745,4e-05,119750.0,119740.0,0.2199103]
[1752691806255,4e-05,119750.0,119740.0,0.63078734]
[1752691806454,4e-05,119750.0,119740.0,0.63478734]
[1752691806658,0.00024,119750.0,119740.0,0.63478734]
[1752691806852,0.00138665,119750.0,119740.0,0.2239103]
[1752691807050,0.00138665,119750.0,119740.0,0.63478734]
[1752691807251,0.0417165,119780.0,119740.0,0.87874408]
[1752691807450,0.18297565,119780.0,119770.0,0.2198683]
[1752691807655,0.1668644,119780.0,119770.0,0.63074534]
[1752691809058,0.1668407,119800.0,119790.0,0.05299]
[1752691809251,0.18346261,119800.0,119790.0,0.05299]
[1752691809452,0.18357391,119800.0,119780.0,0.166854]
[1752691809656,0.0417147,119790.0,119780.0,0.1668645]
[1752691809957,0.78641544,119790.0,119780.0,0.1668645]
[1752691810152,0.1668784,119770.0,119760.0,0.2086071]
[1752691810354,0.1668784,119770.0,119760.0,0.2149251]
[1752691810556,0.57775544,119770.0,119760.0,0.2149251]
[1752691810757,0.1668784,119770.0,119760.0,0.2149251]
[1752691811060,0.2503097,119780.0,119770.0,0.1668784]
[1752691811260,0.208591,119780.0,119770.0,0.1668784]
[1752691812058,0.960111,119780.0,119770.0,0.1668784]
[1752691812762,0.959791,119780.0,119770.0,0.1668784]
[1752691813760,0.1668736,119780.0,119770.0,0.1909884]
[1752691813961,0.9170736,119780.0,119770.0,0.2184884]
[1752691814362,0.9170736,119780.0,119770.0,0.05161]
[1752691814763,0.1668939,119760.0,119750.0,0.2602357]
[1752691814962,0.1668939,119760.0,119750.0,0.2185178]
[1752691815158,0.1668939,119760.0,119740.0,0.218528]
[1752691815159,0.1669078,119750.0,119740.0,0.218528]
[1752691815362,0.1669078,119750.0,119740.0,0.2602577]
[1752691815757,0.1668815,119770.0,119760.0,0.166893]
[1752691815958,0.2086046,119770.0,119760.0,0.2793652]
[1752691816564,0.2086046,119770.0,119760.0,0.3019352]
[1752691816765,0.9140846,119770.0,119760.0,0.3019352]
[1752691816959,0.9140846,119770.0,119760.0,0.2602131]
[1752691817160,0.9140846,119770.0,119760.0,0.2184914]
[1752691817364,0.9140846,119770.0,119760.0,0.2185022]
[1752691818355,0.9140846,119770.0,119760.0,0.05161]
[1752691818865,0.1668923,119760.0,119750.0,0.2135744]
[1752691819060,0.1668923,119760.0,119750.0,0.1668944]
[1752691819761,0.1668923,119760.0,119750.0,0.2135744]
[1752691820161,0.1668923,119760.0,119750.0,0.23529085]
[1752691820760,0.2503317,119770.0,119760.0,0.1668924]
[1752691820960,0.2085907,119780.0,119770.0,0.2184884]
[1752691821268,0.9604307,119780.0,119770.0,0.2184884]
[1752691821467,1.1274067,119780.0,119770.0,0.2184884]
[1752691821663,0.1668784,119770.0,119760.0,0.2602159]
[1752691822864,0.1669184,119770.0,119760.0,0.2602159]
[1752691823461,0.9175184,119770.0,119760.0,0.2602159]
[1752691824569,0.1669184,119770.0,119760.0,0.2602159]
[1752691824772,0.9161584,119770.0,119760.0,0.2602159]
[1752691826183,0.9161984,119770.0,119760.0,0.2602159]
[1752691826475,0.9138384,119770.0,119760.0,0.2602159]
[1752691827174,0.747,119770.0,119760.0,0.2602159]
[1752691827473,0.747,119770.0,119760.0,0.59041475]
[1752691827474,0.745,119770.0,119760.0,0.59041475]
[1752691827775,0.74504,119770.0,119760.0,0.59041475]
[1752691828468,0.74504,119770.0,119760.0,0.2602159]
[1752691828675,0.9119188,119770.0,119760.0,0.59041475]
[1752691828876,0.74504,119770.0,119760.0,0.2602159]
[1752691829174,0.9119188,119770.0,119760.0,0.2602159]
[1752691829371,0.74504,119770.0,119760.0,0.2602159]
[1752691829676,0.74504,119770.0,119760.0,0.59041475]
[1752691830177,0.00036,119770.0,119760.0,0.59041475]
[1752691830478,0.80697069,119790.0,119780.0,0.2184746]
[1752691830775,0.74084,119790.0,119780.0,0.56515963]
[1752691831079,0.9076907,119790.0,119780.0,0.2184746]
[1752691831479,0.9076907,119790.0,119780.0,0.63000203]
[1752691831676,0.9076907,119790.0,119780.0,0.64642303]
[1752691831873,0.9076907,119790.0,119780.0,0.2348956]
[1752691832070,0.2346866,119790.0,119780.0,0.063101]
[1752691832274,0.9762066,119790.0,119780.0,0.016421]
[1752691832471,0.0675159,119790.0,119780.0,0.2433751]
[1752691832677,0.0675559,119790.0,119780.0,0.65490253]
[1752691832975,0.0401626,119790.0,119780.0,0.25315857]
[1752691833175,8e-05,119790.0,119780.0,0.664686]
[1752691833376,8e-05,119790.0,119780.0,0.25315857]
[1752691833576,8e-05,119790.0,119780.0,0.664686]
[1752691833776,8e-05,119790.0,119780.0,0.25315857]
[1752691833981,8e-05,119790.0,119780.0,0.664686]
[1752691834380,8e-05,119790.0,119780.0,0.6646859]
[1752691834978,8e-05,119790.0,119780.0,0.65490253]
[1752691835978,8e-05,119790.0,119780.0,0.66668576]
[1752691836281,0.0682905,119790.0,119780.0,0.66668576]
[1752691836482,8e-05,119790.0,119780.0,0.66668576]
[1752691836980,4e-05,119800.0,119790.0,0.1668538]
[1752691837183,4e-05,119800.0,119790.0,0.63484446]
[1752691837587,4e-05,119800.0,119790.0,0.63977446]
[1752691838584,2.1106692,119830.0,119820.0,0.2184209]
[1752691838779,2.2406692,119830.0,119820.0,0.22820413]
[1752691838978,2.30732501,119830.0,119820.0,0.22820413]
[1752691839177,2.29950024,119830.0,119820.0,0.22820413]
[1752691840086,2.02433523,119830.0,119820.0,0.22820413]
[1752691840386,2.19113053,119830.0,119820.0,0.22820413]
[1752691840886,2.19117053,119830.0,119820.0,0.22820413]
[1752691841483,2.19121053,119830.0,119820.0,0.22820413]
[1752691841788,2.19125053,119830.0,119820.0,0.22820413]
[1752691841988,2.77004996,119830.0,119820.0,0.00978323]
[1752691842189,2.60313796,119830.0,119820.0,0.05646323]
[1752691842485,2.19161053,119830.0,119820.0,0.06139323]
[1752691842676,2.19161053,119830.0,119820.0,0.06239323]
[1752691842988,2.19161053,119830.0,119820.0,0.22920223]
[1752691843188,2.19161053,119830.0,119820.0,0.06239323]
[1752691843890,2.19161053,119830.0,119820.0,0.22920243]
[1752691844084,2.17560048,119830.0,119820.0,0.22920243]
[1752691844284,0.2969153,119830.0,119820.0,0.22920243]
[1752691844582,1.0357953,119830.0,119820.0,0.22820243]
[1752691844991,1.01427654,119830.0,119820.0,0.22820243]
[1752691845190,1.01427654,119830.0,119820.0,0.22920243]
[1752691845489,0.9057953,119830.0,119820.0,0.22920243]
[1752691846485,0.9057953,119830.0,119820.0,0.2194192]
[1752691846689,0.9057953,119830.0,119820.0,0.22920039]
[1752691846884,0.9069853,119830.0,119820.0,0.22920039]
[1752691847189,0.9069853,119830.0,119820.0,0.01078119]
[1752691847990,0.90307276,119830.0,119820.0,0.23090049]
[1752691848193,0.90307276,119830.0,119820.0,0.64242792]
[1752691848385,0.90307276,119830.0,119820.0,0.23090049]
[1752691848985,0.90307276,119830.0,119820.0,0.06409119]
[1752691849884,1.48151219,119830.0,119820.0,0.01078151]
[1752691850085,2.01654874,119830.0,119820.0,0.01042151]
[1752691850689,1.71654874,119830.0,119820.0,0.01042151]
[1752691851191,0.1668693,119820.0,119810.0,0.0002]
[1752691851485,0.1668832,119810.0,119800.0,0.0002]